fUST/lending_fUST_20241128
["ID","MTS","AMOUNT","RATE_DAILY","PERIOD"]
[343585812,1732735835468,-500.0,0.00031264,11]
[343585813,1732735835478,-500.0,0.00031264,11]
[343585814,1732735835487,-500.0,0.00031264,10]
[343585815,1732735835497,-150.15,0.00031264,10]
[343585816,1732735835506,-150.15,0.00031264,10]
[343585817,1732735835520,-150.15,0.00031264,10]
[343585818,1732735835530,-150.18,0.00031264,10]
[343585819,1732735835539,-150.15,0.00031264,10]
[343585820,1732735835549,-500.0,0.00031264,10]
[343585821,1732735835559,-500.0,0.00031264,10]
[343585822,1732735835568,-500.0,0.00031264,10]
[343585823,1732735835578,-150.15,0.00031264,2]
[343585824,1732735835589,-150.15,0.00031264,10]
[343585825,1732735835598,-601.54523118,0.00031273,5]
[343585826,1732735835608,-500.0,0.00031273,5]
[343585827,1732735835619,-151.0,0.00031274,7]
[343585828,1732735835629,-151.0,0.00031274,7]
[343585829,1732735835639,-151.0,0.00031274,7]
[343585830,1732735835648,-151.0,0.00031274,7]
[343585831,1732735835658,-151.0,0.00031274,7]
[343585832,1732735835668,-151.0,0.00031274,7]
[343585833,1732735835678,-151.0,0.00031274,7]
[343585834,1732735835688,-262.224258,0.00031274,7]
[343585835,1732735835697,-151.0,0.00031274,7]
[343585836,1732735835707,-151.0,0.00031274,7]
[343585837,1732735835716,-151.0,0.00031274,7]
[343585838,1732735835725,-151.0,0.00031274,7]
[343585839,1732735835735,-151.0,0.00031274,7]
[343585840,1732735835745,-483.865812,0.00031274,7]
[343585841,1732735835754,-483.865812,0.00031274,7]
[343585842,1732735835766,-483.865812,0.00031274,7]
[343585843,1732735835775,-483.865812,0.00031274,7]
[343585844,1732735835784,-483.865812,0.00031274,7]
[343585845,1732735835793,-483.865812,0.00031274,7]
[343585846,1732735835803,-483.865812,0.00031274,7]
[343585847,1732735835812,-483.865812,0.00031274,7]
[343585848,1732735835822,-483.865812,0.00031274,7]
[343585849,1732735835832,-483.865812,0.00031274,7]
[343585850,1732735835841,-483.865812,0.00031274,7]
[343585851,1732735835851,-483.865812,0.00031274,7]
[343585852,1732735835861,-483.865812,0.00031274,7]
[343585853,1732735835871,-483.865812,0.00031274,7]
[343585854,1732735835881,-483.865812,0.00031274,7]
[343585855,1732735835890,-483.865812,0.00031274,7]
[343585856,1732735835900,-483.865812,0.00031274,7]
[343585857,1732735835911,-483.865812,0.00031274,7]
[343585858,1732735835921,-483.865812,0.00031274,7]
[343585859,1732735835932,-483.865812,0.00031274,7]
[343585860,1732735835942,-151.0,0.00031274,7]
[343585861,1732735835952,-151.0,0.00031274,7]
[343585862,1732735835962,-355.71451,0.00031274,7]
[343585863,1732735835972,-355.71451,0.00031274,7]
[343585864,1732735835981,-355.71451,0.00031274,7]
[343585865,1732735835992,-355.71451,0.00031274,7]
[343585866,1732735836001,-355.71451,0.00031274,7]
[343585867,1732735836011,-355.71451,0.00031274,7]
[343585868,1732735836023,-355.71451,0.00031274,7]
[343585869,1732735836032,-355.71451,0.00031274,7]
[343585870,1732735836041,-355.71451,0.00031274,7]
[343585871,1732735836050,-355.71451,0.00031274,7]
[343585872,1732735836060,-355.71451,0.00031274,7]
[343585873,1732735836069,-355.71451,0.00031274,7]
[343585874,1732735836078,-355.71451,0.00031274,7]
[343585875,1732735836087,-355.71451,0.00031274,7]
[343585876,1732735836097,-355.71451,0.00031274,7]
[343585877,1732735836107,-355.71451,0.00031274,7]
[343585878,1732735836116,-355.71451,0.00031274,7]
[343585879,1732735836125,-355.71451,0.00031274,7]
[343585880,1732735836134,-355.71451,0.00031274,7]
[343585881,1732735836144,-355.714502,0.00031274,7]
[343585882,1732735836153,-151.0,0.00031274,7]
[343585883,1732735836162,-151.0,0.00031274,7]
[343585884,1732735836172,-151.0,0.00031274,7]
[343585885,1732735836181,-449170.93802724,0.00031274,10]
[343585944,1732735838652,-500.0,0.00024657,3]
[343585946,1732735838663,-500.0,0.00024657,3]
[343585949,1732735838672,-487.35539382,0.00025089,2]
[343585951,1732735838682,-171.38255227,0.00025089,2]
[343585953,1732735838691,-500.0,0.00025089,2]
[343585955,1732735838701,-500.0,0.00025089,2]
[343585967,1732735838805,-500.0,0.00025089,2]
[343585969,1732735838815,-500.0,0.00025089,2]
[343585971,1732735838824,-500.0,0.00025089,2]
[343585973,1732735838834,-500.0,0.00025089,2]
[343585975,1732735838843,-163.16309996,0.00025089,2]
[343585977,1732735838852,-500.0,0.00025089,2]
[343585980,1732735838862,-500.0,0.00025089,2]
[343585982,1732735838872,-500.0,0.00025089,2]
[343585983,1732735838882,-527.30227609,0.00025089,2]
[343585986,1732735838892,-500.0,0.00025089,2]
[343585988,1732735838901,-500.0,0.00025089,2]
[343585990,1732735838911,-197.06403891,0.00025089,2]
[343585992,1732735838920,-500.0,0.00025089,2]
[343585994,1732735838929,-500.0,0.00025089,2]
[343585996,1732735838939,-500.0,0.00025089,2]
[343585998,1732735838948,-534.63863913,0.00025089,2]
[343586000,1732735838958,-500.0,0.00025089,2]
[343586002,1732735838967,-500.0,0.00025089,2]
[343586004,1732735838976,-500.0,0.00025089,2]
[343586006,1732735838986,-500.0,0.00025089,2]
[343586008,1732735838995,-500.0,0.00025089,2]
[343586010,1732735839005,-500.0,0.00025089,2]
[343586012,1732735839019,-161.07107631,0.00025089,2]
[343586014,1732735839029,-500.0,0.00025089,2]
[343586016,1732735839038,-500.0,0.00025089,2]
[343586018,1732735839048,-500.0,0.00027367,2]
[343586020,1732735839058,-520.7019209,0.00027397,2]
[343586022,1732735839067,-155.81835245,0.00027915,5]
[343586024,1732735839076,-150.22,0.0002799,3]
[343586026,1732735839086,-500.0,0.00028999,2]
[343586028,1732735839095,-150.01,0.00031263,2]
[343586030,1732735839105,-2769.56086148,0.00031263,2]
[343586032,1732735839114,-12819.09946857,0.00031274,10]
[343586034,1732735839126,-3585.0,0.00031274,10]
[343586134,1732735844464,-300.44,0.0002936,3]
[343586135,1732735844474,-1229.47,0.00031266,10]
[343586136,1732735844483,-20579.99000001,0.00031274,10]
[343586137,1732735844495,-5134.67969813,0.00031274,10]
[343586138,1732735844506,-8170.126716,0.00031274,10]
[343586139,1732735844517,-66776.70009157,0.00031274,10]
[343586151,1732735876186,669.53464192,0.0002203,2]
[343586154,1732736209038,170.553775,0.00013973,2]
[343586156,1732736299466,24900.0,0.00021943,2]
[343586161,1732736832135,-3325.4155865,0.00022119,2]
[343586162,1732736832156,-153.34596108,0.00023679,2]
[343586163,1732736851088,-2981.37204423,0.00023755,2]
[343586164,1732736868985,170.553775,0.00013973,2]
[343586191,1732737032482,-169.471976,0.00023505,2]
[343586192,1732737032491,-1914.35881777,0.00023755,2]
[343586193,1732737032501,-250.0,0.0002378,2]
[343586194,1732737032511,-1492.1107693,0.00024054,2]
[343586195,1732737032527,-300.0,0.00024655,2]
[343586196,1732737032536,-3007.87739553,0.00024656,2]
[343586197,1732737032546,-500.0,0.00024657,3]
[343586198,1732737032556,-500.0,0.00024657,3]
[343586199,1732737032565,-500.0,0.00024657,3]
[343586200,1732737032575,-500.0,0.00024657,3]
[343586201,1732737032584,-500.0,0.00024657,3]
[343586202,1732737032593,-500.0,0.00024657,3]
[343586203,1732737032602,-500.0,0.00024657,3]
[343586204,1732737032611,-500.0,0.00024657,3]
[343586205,1732737032621,-590.86,0.00024657,3]
[343586206,1732737032630,-500.0,0.00024657,3]
[343586207,1732737032640,-500.0,0.00024657,3]
[343586208,1732737032649,-500.0,0.00024657,3]
[343586209,1732737032659,-200.0,0.00024657,3]
[343586210,1732737032668,-1000.0,0.00024657,10]
[343586211,1732737032677,-500.0,0.00024657,3]
[343586212,1732737032686,-428.18998239,0.00024657,3]
[343586213,1732737032695,-500.0,0.00024657,3]
[343586214,1732737032705,-500.0,0.00024657,3]
[343586215,1732737032714,-500.0,0.00024657,3]
[343586216,1732737032723,-594.77059027,0.00024657,3]
[343586217,1732737032733,-500.0,0.00024657,3]
[343586218,1732737032743,-500.0,0.00024657,3]
[343586219,1732737032754,-500.0,0.00024657,3]
[343586220,1732737032763,-500.0,0.00024657,3]
[343586221,1732737032773,-500.0,0.00024657,3]
[343586222,1732737032782,-383.18199992,0.00024657,3]
[343586223,1732737032792,-500.0,0.00024657,3]
[343586224,1732737032801,-500.0,0.00024657,3]
[343586225,1732737032811,-500.0,0.00024657,3]
[343586226,1732737032820,-3497.63269197,0.00024827,2]
[343586227,1732737032829,-500.0,0.00024926,3]
[343586228,1732737032839,-200.0,0.00024926,3]
[343586229,1732737032848,-1000.0,0.00024926,10]
[343586230,1732737032857,-500.0,0.00024926,3]
[343586231,1732737032866,-500.0,0.00024926,3]
[343586232,1732737032876,-500.0,0.00024926,3]
[343586233,1732737032993,-500.0,0.00024926,3]
[343586234,1732737033003,-500.0,0.00024926,3]
[343586235,1732737033013,-233.89786919,0.00024926,3]
[343586236,1732737033024,-500.0,0.00024926,3]
[343586237,1732737033033,-500.0,0.00024926,3]
[343586238,1732737033043,-500.0,0.00024926,3]
[343586239,1732737033052,-500.0,0.00024927,3]
[343586240,1732737033061,-500.0,0.00024927,3]
[343586241,1732737033070,-500.0,0.00024927,3]
[343586242,1732737033080,-500.0,0.00024927,3]
[343586243,1732737033089,-500.0,0.00024927,3]
[343586244,1732737033098,-500.0,0.00024927,3]
[343586245,1732737033108,-500.0,0.00024927,3]
[343586246,1732737033119,-500.0,0.00024927,3]
[343586247,1732737033132,-500.0,0.00024927,3]
[343586248,1732737033149,-500.0,0.00024927,3]
[343586249,1732737033159,-179.852,0.00025634,10]
[343586250,1732737033168,-3497.63269193,0.00025732,2]
[343586251,1732737033178,-240.75964549,0.00026637,2]
[343586252,1732737033188,-3497.63269193,0.00026637,2]
[343586253,1732737033197,-420.0,0.00027121,2]
[343586254,1732737033207,-500.0,0.00027397,2]
[343586255,1732737033217,-3497.63269193,0.00027542,2]
[343586256,1732737033226,-3497.63269193,0.00028447,2]
[343586257,1732737033235,-500.0,0.00028767,4]
[343586258,1732737033245,-3497.63269193,0.00029352,2]
[343586259,1732737033255,-500.0,0.00029832,3]
[343586260,1732737033264,-200.0,0.00029832,3]
[343586261,1732737033273,-1000.0,0.00029832,10]
[343586262,1732737033283,-500.0,0.00029832,3]
[343586263,1732737033293,-500.0,0.00029832,3]
[343586264,1732737033303,-500.0,0.00029832,3]
[343586265,1732737033313,-500.0,0.00029832,3]
[343586266,1732737033322,-500.0,0.00029833,3]
[343586267,1732737033332,-500.0,0.00029833,3]
[343586268,1732737033341,-500.0,0.00029833,3]
[343586269,1732737033351,-587.03,0.00029833,3]
[343586270,1732737033361,-500.0,0.00029833,3]
[343586271,1732737033370,-500.0,0.00029833,3]
[343586272,1732737033380,-546.41,0.00029833,3]
[343586273,1732737033390,-500.0,0.00029833,3]
[343586274,1732737033399,-500.0,0.00029833,3]
[343586275,1732737033409,-500.0,0.00029833,3]
[343586276,1732737033419,-587.0,0.00029833,2]
[343586277,1732737033430,-151.0,0.00029963,2]
[343586278,1732737033441,-151.0,0.0003,120]
[343586279,1732737033452,-151.0,0.0003,120]
[343586280,1732737033463,-169.81275,0.0003,2]
[343586281,1732737033474,-206.0,0.0003,2]
[343586282,1732737033484,-600.0,0.00030038,2]
[343586283,1732737033495,-500.0,0.00030136,6]
[343586284,1732737033506,-1926.488276,0.00030137,120]
[343586285,1732737033515,-404.27529608,0.00030137,60]
[343586286,1732737033525,-3497.63269193,0.00030257,2]
[343586287,1732737033536,-500.0,0.00030274,120]
[343586288,1732737033546,-500.0,0.00030274,120]
[343586289,1732737033556,-500.0,0.00030274,120]
[343586290,1732737033567,-500.0,0.00030274,120]
[343586291,1732737033578,-500.0,0.00030274,120]
[343586292,1732737033589,-500.0,0.00030274,120]
[343586293,1732737033600,-500.0,0.00030274,120]
[343586294,1732737033611,-404.06,0.00030274,120]
[343586295,1732737033621,-500.0,0.00030274,120]
[343586296,1732737033631,-1197.42576861,0.00030351,2]
[343586297,1732737033643,-150.0,0.00030378,2]
[343586298,1732737033653,-531.0,0.00030378,2]
[343586299,1732737033663,-2377.0,0.00030378,2]
[343586300,1732737033672,-1104.0,0.00030378,2]
[343586301,1732737033682,-151.0,0.00030482,7]
[343586302,1732737033692,-1132.1,0.000305,2]
[343586303,1732737033701,-269.73,0.000307,31]
[343586304,1732737033711,-269.73,0.000307,31]
[343586305,1732737033721,-269.73,0.000307,31]
[343586306,1732737033730,-269.73,0.000307,31]
[343586307,1732737033739,-269.73,0.000307,31]
[343586308,1732737033749,-269.73,0.000307,31]
[343586309,1732737033759,-269.73,0.000307,31]
[343586310,1732737033768,-269.73,0.000307,31]
[343586311,1732737033778,-269.73,0.000307,31]
[343586312,1732737033787,-269.73,0.000307,31]
[343586313,1732737033797,-269.73,0.000307,31]
[343586314,1732737033807,-269.73,0.000307,31]
[343586315,1732737033816,-151.0,0.00030883,7]
[343586316,1732737033826,-287.3999,0.00030948,30]
[343586317,1732737033835,-275.5,0.00031,4]
[343586318,1732737033845,-515.92,0.00031152,10]
[343586319,1732737033854,-983.83,0.00031154,10]
[343586320,1732737033864,-500.0,0.0003116,3]
[343586321,1732737033873,-200.0,0.0003116,3]
[343586322,1732737033882,-1000.0,0.0003116,10]
[343586323,1732737033892,-500.0,0.0003116,3]
[343586324,1732737033901,-500.0,0.0003116,3]
[343586325,1732737033911,-500.0,0.0003116,3]
[343586326,1732737033920,-500.0,0.0003116,3]
[343586327,1732737033929,-3342.2281199,0.00031161,2]
[343586328,1732737033985,-499.0128421,0.00031161,2]
[343586329,1732737033995,-3497.63269193,0.00031162,2]
[343586330,1732737034006,-153.91643518,0.00031162,7]
[343586331,1732737034015,-153.91,0.00031162,7]
[343586332,1732737034025,-500.0,0.00031164,3]
[343586333,1732737034035,-500.0,0.00031164,3]
[343586334,1732737034045,-500.0,0.00031164,3]
[343586335,1732737034055,-500.0,0.00031164,3]
[343586336,1732737034065,-117.67931055,0.00031164,3]
[343586337,1732737034077,-382.32068945,0.00031164,3]
[343586338,1732737034086,-500.0,0.00031164,3]
[343586339,1732737034096,-305.52036795,0.00031164,3]
[343586340,1732737034106,-157.05,0.00031166,120]
[343586341,1732737034116,-450.68,0.00031166,3]
[343586342,1732737034125,-500.0,0.00031173,5]
[343586343,1732737034134,-500.0,0.00031173,5]
[343586344,1732737034143,-336.36691957,0.00031175,2]
[343586345,1732737034153,-573.45234181,0.00031175,2]
[343586346,1732737034163,-281.62651546,0.00031175,2]
[343586347,1732737034174,-500.0,0.00031175,3]
[343586348,1732737034183,-500.0,0.00031175,3]
[343586349,1732737034193,-500.0,0.00031175,3]
[343586350,1732737034202,-500.0,0.00031175,3]
[343586351,1732737034211,-500.0,0.00031175,3]
[343586352,1732737034221,-511.35097569,0.00031175,3]
[343586353,1732737034230,-500.0,0.00031175,3]
[343586354,1732737034240,-308.64422854,0.00031175,3]
[343586355,1732737034250,-1000.0,0.00031175,10]
[343586356,1732737034259,-500.0,0.00031175,3]
[343586357,1732737034268,-500.0,0.00031175,3]
[343586358,1732737034278,-500.0,0.00031175,3]
[343586359,1732737034288,-500.0,0.00031175,3]
[343586360,1732737034298,-231.7,0.00031175,3]
[343586361,1732737034307,-594.28,0.00031175,3]
[343586362,1732737034317,-500.0,0.00031175,3]
[343586363,1732737034326,-23490.67766191,0.00031176,2]
[343586410,1732737038585,-386.52906084,0.00031152,10]
[343586418,1732737038656,-433.33093916,0.00031152,10]
[343586420,1732737038665,-67466.17559865,0.00031176,2]
[343586612,1732737043898,-104154.21470107,0.00031176,2]
[343586658,1732737570894,168.734859,0.00013973,2]
[343586669,1732738030126,-369.56087715,0.00024799,2]
[343586670,1732738030148,-300.0,0.00025138,2]
[343586671,1732738030170,-300.0,0.00025138,2]
[343586672,1732738030191,-1440.13630662,0.00025139,2]
[343586705,1732738232659,-300.0,0.00024998,2]
[343586706,1732738232668,-300.0,0.00024999,2]
[343586707,1732738232678,-25482.0,0.00024999,2]
[343586708,1732738232687,-362.75891927,0.00025,2]
[343586709,1732738232698,-25211.69510261,0.00025,2]
[343586710,1732738232708,-500.0,0.00025138,3]
[343586711,1732738232717,-500.0,0.00025138,3]
[343586712,1732738232726,-2780.02033277,0.00025138,2]
[343586713,1732738232736,-500.0,0.00025138,3]
[343586714,1732738232745,-500.0,0.00025138,3]
[343586715,1732738232755,-418.19133834,0.00025138,3]
[343586716,1732738232764,-500.0,0.00025139,3]
[343586717,1732738232773,-500.0,0.00025139,3]
[343586718,1732738232783,-24900.0,0.0002514,2]
[343586719,1732738232792,-171.804899,0.00025302,2]
[343586720,1732738232803,-570.139326,0.00025508,2]
[343586721,1732738232817,-387.39,0.00026302,3]
[343586722,1732738232827,-500.0,0.00026302,3]
[343586723,1732738232836,-194.59,0.00026302,3]
[343586724,1732738232846,-1747.1190594,0.00026306,2]
[343586725,1732738232854,-452.77538759,0.000267,2]
[343586726,1732738232864,-500.0,0.000267,2]
[343586727,1732738232873,-500.0,0.00026847,3]
[343586728,1732738232883,-202.80596141,0.00026847,3]
[343586729,1732738232893,-285.90374829,0.00026847,3]
[343586730,1732738232902,-420.0,0.00027082,2]
[343586731,1732738232912,-500.0,0.00027248,2]
[343586732,1732738232922,-420.0,0.00027498,2]
[343586733,1732738232931,-500.0,0.00027652,3]
[343586734,1732738232941,-500.0,0.00027652,3]
[343586735,1732738232950,-3127.1527621,0.00027762,2]
[343586736,1732738232961,-179.852,0.00028953,21]
[343586737,1732738232971,-500.0,0.00029103,3]
[343586738,1732738232980,-419.51709577,0.00029103,3]
[343586739,1732738232990,-500.0,0.00029103,3]
[343586740,1732738233000,-500.0,0.00029103,3]
[343586741,1732738233010,-500.0,0.00029103,3]
[343586742,1732738233020,-500.0,0.00029104,3]
[343586743,1732738233029,-500.0,0.00029104,3]
[343586744,1732738233038,-587.0,0.00029339,2]
[343586745,1732738233048,-439.49,0.0002997,10]
[343586746,1732738233059,-221.0,0.0003,2]
[343586747,1732738233069,-366.24,0.00030127,10]
[343586748,1732738233078,-697.35,0.00030127,10]
[343586749,1732738233087,-500.0,0.00030136,2]
[343586750,1732738233098,-1444.866207,0.00030137,120]
[343586751,1732738233107,-254.58160536,0.00030137,2]
[343586752,1732738233117,-587.0,0.00030248,2]
[343586753,1732738233127,-150.0,0.00030378,2]
[343586754,1732738233137,-250.0,0.00030378,2]
[343586755,1732738233147,-150.0,0.00030378,2]
[343586756,1732738233158,-531.0,0.00030378,2]
[343586757,1732738233167,-1104.0,0.00030378,2]
[343586758,1732738233177,-2377.0,0.00030378,2]
[343586759,1732738233187,-2500.0,0.00030427,3]
[343586760,1732738233197,-2500.0,0.00030436,3]
[343586761,1732738233207,-2500.0,0.00030444,3]
[343586762,1732738233216,-500.0,0.00030452,2]
[343586763,1732738233226,-500.0,0.00030452,2]
[343586764,1732738233236,-500.0,0.00030452,2]
[343586765,1732738233246,-230.88536939,0.00030452,2]
[343586766,1732738233256,-458.6028151,0.00030452,2]
[343586767,1732738233266,-2500.0,0.00030453,3]
[343586768,1732738233276,-2500.0,0.00030462,3]
[343586769,1732738233286,-1018.89,0.000307,2]
[343586770,1732738233297,-239.82,0.000307,31]
[343586771,1732738233312,-239.82,0.000307,31]
[343586772,1732738233321,-239.82,0.000307,31]
[343586773,1732738233330,-239.82,0.000307,31]
[343586774,1732738233341,-239.82,0.000307,31]
[343586775,1732738233351,-239.82,0.000307,31]
[343586776,1732738233361,-239.82,0.000307,31]
[343586777,1732738233370,-239.82,0.000307,31]
[343586778,1732738233379,-239.82,0.000307,31]
[343586779,1732738233389,-239.82,0.000307,31]
[343586780,1732738233399,-239.82,0.000307,31]
[343586781,1732738233408,-239.82,0.000307,31]
[343586782,1732738233417,-187.6911448,0.00030951,4]
[343586783,1732738233427,-275.5,0.00031,4]
[343586784,1732738233438,-152.54179567,0.00031151,3]
[343586785,1732738233449,-566.16,0.00031151,3]
[343586786,1732738233459,-500.0,0.00031162,3]
[343586787,1732738233469,-500.0,0.00031162,3]
[343586788,1732738233478,-375.42,0.00031162,3]
[343586789,1732738233488,-22595.13495833,0.00031162,2]
[343586790,1732738233498,-66586.54609909,0.00031162,2]
[343586791,1732738233511,-650.26151516,0.00031162,2]
[343586792,1732738233523,-10799.3194304,0.00031162,2]
[343586826,1732738238761,-2626.94849051,0.00031162,2]
[343586827,1732738238870,-1005.156,0.00031162,2]
[343586828,1732738238882,-14775.84400424,0.00031162,2]
[343586829,1732738238925,-500.0,0.00025138,3]
[343586830,1732738238935,-24214.99643532,0.00031162,2]
[343586891,1732738243641,-581.12,0.00031152,10]
[343586893,1732738243651,-23619.68614856,0.00031162,2]
[343586895,1732738243663,-3046.88465669,0.00031162,2]
[343587060,1732738246489,-9652.39312388,0.00031162,2]
[343587101,1732738268641,167.219095,0.00013973,2]
[343587105,1732739021676,166.109457,0.00013973,2]
[343587106,1732739245158,-2484.276629,0.00028437,2]
[343587107,1732739245180,-225.23458367,0.00028993,2]
[343587108,1732739312234,3217.49699213,0.0002,2]
[343587109,1732739313183,268.24196121,0.00014114,2]
[343587110,1732739321017,7313.10505307,0.00020377,2]
[343587111,1732739324496,436.68398635,0.00015,2]
[343587112,1732739325383,562.69054326,0.000149,2]
[343587116,1732739326521,21511.72098267,0.000109,2]
[343587153,1732739435788,-2201.40152679,0.00025,2]
[343587155,1732739435800,-1098.59847321,0.00025,2]
[343587157,1732739435810,-172.452371,0.00028511,2]
[343587159,1732739435819,-300.0,0.00029011,2]
[343587161,1732739435829,-300.0,0.00029011,2]
[343587163,1732739435839,-193.64160414,0.00029012,3]
[343587166,1732739435852,-306.35839586,0.00029012,3]
[343587168,1732739435861,-500.0,0.00029012,3]
[343587169,1732739435870,-8893.64160414,0.00029012,2]
[343587273,1732739439411,-16006.35839586,0.00029012,2]
[343587275,1732739439421,-5711.02913882,0.0002961,2]
[343587277,1732739439430,-7000.67349825,0.00029638,7]
[343587279,1732739439439,-241.83927952,0.00029638,2]
[343587281,1732739439449,-233.54,0.0002999,10]
[343587283,1732739439459,-520.0,0.0003,30]
[343587285,1732739439468,-894.61952165,0.0003,2]
[343587287,1732739439478,-5550.94016594,0.0003,15]
[343587433,1732739440822,-5826.0,0.0003,15]
[343587713,1732739444075,-11105.57744466,0.0003,15]
[343587714,1732739444089,-41517.4823894,0.0003,15]
[343587715,1732739444099,-7970.97234951,0.0003,10]
[343587716,1732739444109,-1500.0,0.0003,2]
[343587717,1732739444119,-1023.82954509,0.0003,7]
[343587718,1732739444129,-364.22729953,0.0003,30]
[343587720,1732739444139,-444.0,0.0003,2]
[343587721,1732739444151,-5000.0,0.00030029,7]
[343587722,1732739444160,-1083.649655,0.00030137,120]
[343587724,1732739444170,-500.0,0.00030369,3]
[343587725,1732739444180,-531.0,0.0003037,2]
[343587727,1732739444189,-2377.0,0.0003037,2]
[343587729,1732739444199,-1104.0,0.0003037,2]
[343587731,1732739444208,-374.01344576,0.0003048,2]
[343587733,1732739444218,-163.17944407,0.0003048,5]
[343587735,1732739444227,-500.0,0.0003048,5]
[343587736,1732739444237,-500.0,0.0003048,5]
[343587742,1732739444408,-500.0,0.0003048,5]
[343587744,1732739444418,-500.0,0.0003055,5]
[343587746,1732739444428,-500.0,0.0003055,5]
[343587747,1732739444438,-211.06,0.000307,31]
[343587749,1732739444448,-211.06,0.000307,31]
[343587751,1732739444457,-211.06,0.000307,31]
[343587753,1732739444466,-211.06,0.000307,31]
[343587755,1732739444475,-211.06,0.000307,31]
[343587756,1732739444484,-211.06,0.000307,31]
[343587758,1732739444494,-211.06,0.000307,31]
[343587759,1732739444504,-211.06,0.000307,31]
[343587760,1732739444513,-211.06,0.000307,31]
[343587762,1732739444522,-211.06,0.000307,31]
[343587763,1732739444531,-211.06,0.000307,31]
[343587765,1732739444541,-211.06,0.000307,31]
[343587767,1732739444551,-917.0,0.000308,2]
[343587768,1732739444563,-275.5,0.00031,4]
[343587770,1732739444575,-861.5,0.00031007,30]
[343587772,1732739444585,-500.0,0.00031028,5]
[343587774,1732739444594,-1000.0,0.00031028,5]
[343587776,1732739444603,-209.63647164,0.00031098,5]
[343587799,1732739446705,-795.46149435,0.00031098,5]
[343587800,1732739446716,-1000.0,0.00031098,5]
[343587801,1732739446727,-1000.0,0.000311,3]
[343587802,1732739446739,-1000.0,0.000311,10]
[343587803,1732739446749,-1000.0,0.000311,17]
[343587804,1732739446758,-250.0,0.0003113,3]
[343587805,1732739446769,-509.49,0.00031158,10]
[343587806,1732739446778,-179.826,0.00031162,28]
[343587807,1732739446788,-500.0,0.00031162,2]
[343587808,1732739446798,-500.0,0.00031167,3]
[343587809,1732739446808,-11297.56747917,0.00031168,2]
[343587810,1732739446818,-666.0,0.00031168,2]
[343587811,1732739446828,-706.23772679,0.00031168,2]
[343587812,1732739446839,-524.340663,0.00031168,2]
[343587813,1732739446851,-220769.42161021,0.00031168,2]
[343587814,1732739446860,-2008.41133163,0.00031168,3]
[343587815,1732739446870,-500.0,0.00031183,2]
[343587816,1732739446879,-650.226,0.00031183,7]
[343587817,1732739446889,-3200.0,0.00031183,2]
[343587818,1732739446901,-500.0,0.00031191,2]
[343587819,1732739446910,-616.0,0.000312,2]
[343587820,1732739446919,-151.0,0.00031207,7]
[343587821,1732739446928,-200.0,0.0003126,30]
[343587822,1732739446938,-1000.0,0.0003126,30]
[343587823,1732739446947,-241.03564286,0.00031263,2]
[343587824,1732739446957,-2769.56086148,0.00031263,2]
[343587825,1732739446967,-500.0,0.00031264,11]
[343587826,1732739446976,-500.0,0.00031264,11]